[Event "MPL-4 Indian Chess Tour 2022"]
[Site "Chess24"]
[Date "2022.09.27"]
[Round "8.6"]
[White "Pranav, V."]
[Black "Vaibhav, Suri"]
[Result "1-0"]
[ECO "D02"]
[WhiteElo "2530"]
[BlackElo "2600"]
[Annotator "TA"]
[PlyCount "89"]
[EventDate "2022.09.29"]
[EventType "tourn (rapid)"]
[EventCountry "NET"]
[SourceTitle "playchess.com"]
[Source "ChessBase"]
[SourceQuality "1"]
[WhiteTeam "India"]
[BlackTeam "India"]
[WhiteTeamCountry "IND"]
[BlackTeamCountry "IND"]
[TimeControl "900+10"]

{[%evp 9,89,6,8,0,0,6,22,23,23,22,27,27,62,27,35,27,40,43,45,0,36,0,0,0,0,0,0,-12,72,0,0,0,0,0,277,156,157,0,0,-258,-261,-222,-120,-99,-122,-119,-104,-150,-65,-95,-16,-16,-16,-531,-527,-533,-502,-504,160,160,160,160,179,179,298,0,0,0,216,0,0,0,518,519,497,489,584,466,1055,1033,1026,991]} 1. d4 {[%emt 0:00:00]} d5 {[%emt 0:00:00]} 2. Bf4 {[%emt 0:00:07]} e6 {[%emt 0:00:05]} 3. e3 {[%emt 0:00:03]} Bd6 {[%emt 0:00:02]} 4. Nf3 {[%emt 0:00:19]} Nf6 {[%emt 0:00:12]} 5. Nbd2 {[%emt 0:00:23]} O-O {[%emt 0:00:05]} 6. c3 {[%emt 0:00:29] D02: 1 d4 d5 2 Nf3 sidelines, including 2...Nf6 3 g3 and 2...Nf6 3 Bf4.} c5 {[%emt 0:00:10]} 7. Bd3 {[%emt 0:00:39]} Qc7 {[%emt 0:00:45]} 8. Bxd6 {[%emt 0:02:20] The position is equal.} Qxd6 {[%emt 0:00:02]} 9. Ne5 {[%emt 0:00:01]} Nfd7 {[%emt 0:02:18]} 10. f4 {[%emt 0:01:10][%cal Bf2f4,Bf4e5][%mdl 32]} (10. Qh5 g6 11. Qh4 (11. Qg5 $2 f6 $19) 11... Nxe5 12. dxe5 Qxe5 $15) 10... f5 {[%emt 0:00:13]} 11. g4 {[%emt 0:00:39] [#] White has more active pieces.} Nxe5 $146 {[%emt 0:04:56]} ({Predecessor:} 11... cxd4 12. exd4 Qe7 13. O-O fxg4 14. Qxg4 Nf6 15. Qh4 Nc6 16. Nxc6 bxc6 17. Bxh7+ Kf7 {1-0 (41) Hambleton,A (2454)-Batsiashvili,N (2472) Chess.com INT 2022}) 12. fxe5 {[%emt 0:00:48]} Qe7 {[%emt 0:00:01]} 13. h4 {[%emt 0:01:21]} f4 {[%emt 0:02:42]} 14. Qe2 {[%emt 0:00:04]} Nc6 {[%emt 0:00:02]} 15. a3 {[%emt 0:01:34]} (15. g5 $5 {[%cal Rd3h7]} Qe8 16. O-O $11) 15... Bd7 {[%emt 0:00:18]} 16. Nf3 {[%emt 0:00:59]} fxe3 {[%emt 0:00:57]} 17. Qxe3 {[%emt 0:01:21]} cxd4 $1 {[%emt 0:00:08]} 18. cxd4 {[%emt 0:01:03]} Rac8 {[%emt 0:02:11]} (18... Qf7 $1 $11 {keeps the balance.} 19. O-O Qf4 20. Qxf4 Rxf4 21. Bxh7+ Kh8) 19. Ng5 {[%emt 0:02:01]} ({Better is} 19. O-O $16) 19... h6 $11 {[%emt 0:00:07]} 20. Nh7 {[%emt 0:00:06] Strongly threatening g5.} Rf7 {[%emt 0:02:00]} 21. g5 {[%emt 0:00:02]} Qd8 $2 {[%emt 0:00:01][%mdl 8192] [#]} (21... Nb4 $1 $11) 22. g6 {[%emt 0:01:27]} (22. gxh6 Qa5+ 23. Qd2 Qxd2+ 24. Kxd2 Nxd4 $16) (22. Nf6+ $1 $18 {[%mdl 512]} Kh8 23. Bg6 gxf6 24. gxf6) 22... Rf5 $16 {[%emt 0:00:28]} (22... Qa5+ $2 23. b4 Qb6 24. gxf7+ $18) 23. h5 $2 {[%emt 0:01:21]} (23. Bxf5 $16 exf5 24. Rh2) 23... Qa5+ $1 $11 {[%emt 0:00:48]} 24. Kd1 $2 {[%emt 0:00:28][%mdl 8192]} ({Don't blunder} 24. b4 $2 Nxb4 25. Bxf5 Nc2+ 26. Ke2 Nxe3 $19) (24. Qd2 $1 $11 {and White is okay.}) 24... Qa4+ $19 {[%emt 0:00:21]} 25. Bc2 {[%emt 0:00:08] [#]} Qxd4+ {[%emt 0:00:17]} (25... Nxd4 $1 $19 26. Bxa4 Bxa4+ 27. Kd2 Nf3+ 28. Qxf3 (28. Ke2 $2 Rc2+ 29. Kd3 Nxe5+ 30. Qxe5 Rxe5 $19) 28... Rxf3) 26. Qxd4 $17 {[%emt 0:00:01]} Nxd4 {[%emt 0:00:00]} 27. Bxf5 {[%emt 0:00:01]} exf5 {[%emt 0:00:15]} ({Much weaker is} 27... Nxf5 $6 28. Rc1 Bc6 29. Kd2 $11) 28. a4 {[%emt 0:00:34] [#]} (28. Rb1 $142) 28... f4 {[%emt 0:00:03]} (28... Nb3 $1 $17 {[%cal Rb3a1]} 29. Rb1 f4) 29. Ra3 $15 {[%emt 0:00:09]} Bg4+ {[%emt 0:00:10]} (29... a5 $17 30. Rh4 Ne6) 30. Kd2 $11 {[%emt 0:00:02]} Nf3+ {[%emt 0:00:07]} 31. Kd3 $2 {[%emt 0:00:20][%mdl 8192]} (31. Rxf3 $1 $11 Bxf3 32. Rh4) 31... Nxe5+ $19 {[%emt 0:00:17]} 32. Kd4 {[%emt 0:00:12]} Nf3+ {[%emt 0:00:16]} 33. Kxd5 {[%emt 0:00:08]} Ng5 $2 {[%emt 0:00:03]} (33... Rd8+ $19 34. Kc5 Nd2) 34. Nxg5 $16 {[%emt 0:00:12]} hxg5 {[%emt 0:00:00][%mdl 4096] Endgame KRR-KRB} 35. Rg1 {[%emt 0:00:00]} Bxh5 {[%emt 0:00:14]} 36. Rxg5 {[%emt 0:00:01]} Be2 {[%emt 0:00:01]} (36... Bd1 {was necessary.} 37. Rf5 f3) 37. Ke4 {[%emt 0:00:28]} Rc4+ {[%emt 0:00:11]} 38. Kd5 {[%emt 0:00:01] Hoping for Re5.} Rc8 {[%emt 0:00:26] Threatens to win with ...f3.} 39. Ke4 {[%emt 0:00:18]} (39. Rc3 $18 {[%cal Rc3c8]} Rf8 40. Rh3) 39... Rc4+ $11 {[%emt 0:00:09]} 40. Kd5 {[%emt 0:00:01] Black must now prevent Re5.} Rc6 $2 {[%emt 0:00:01][%mdl 8192]} (40... Rc8 $11 {and Black stays safe.} 41. Rf5 f3) 41. Re5 $18 {[%emt 0:00:16][%cal Re5e8] White is clearly winning.} Bc4+ {[%emt 0:00:16]} 42. Kd4 {[%emt 0:00:00][%cal Re5e8]} Kf8 {[%emt 0:00:11] Inhibits Re8+.} 43. Rf3 {[%emt 0:00:02]} Bf7 {[%emt 0:00:19]} (43... Be6 $142 44. Rc5 Rd6+ 45. Ke5 Ke7 46. Rxf4 Rd7) 44. gxf7 {[%emt 0:00:03]} Rf6 {[%emt 0:00:03]} 45. Ke4 {[%emt 0:00:03] Weighted Error Value: White=0.59/Black=0.60} 1-0

[Event "MPL-4 Indian Chess Tour 2022"]
[Site "Chess24"]
[Date "2022.09.27"]
[Round "8.7"]
[White "Puranik, Abhimanyu"]
[Black "Mitrabha, Guha"]
[Result "0-1"]
[ECO "A07"]
[WhiteElo "2603"]
[BlackElo "2471"]
[Annotator "TA"]
[PlyCount "58"]
[EventDate "2022.09.29"]
[EventType "tourn (rapid)"]
[EventCountry "NET"]
[SourceTitle "playchess.com"]
[Source "ChessBase"]
[SourceQuality "1"]
[WhiteTeam "India"]
[BlackTeam "India"]
[WhiteTeamCountry "IND"]
[BlackTeamCountry "IND"]
[TimeControl "900+10"]

{[%evp 9,58,22,29,27,46,28,12,22,22,18,18,14,29,4,16,0,23,0,2,-8,-10,-75,-65,-82,-35,-39,-38,-46,-20,-69,-30,-34,0,-29,-35,-48,-37,-72,-72,-138,-67,-72,-76,-181,-164,-312,-317,-338,-314,-282,-107]} 1. Nf3 {[%emt 0:00:00]} d5 {[%emt 0:00:00]} 2. g3 {[%emt 0:00:04]} Bg4 {[%emt 0:00:11]} 3. Bg2 {[%emt 0:00:01]} Nd7 {[%emt 0:00:01]} 4. h3 {[%emt 0:00:02]} Bh5 {[%emt 0:00:04]} 5. c4 {[%emt 0:01:04]} c6 {[%emt 0:00:07]} 6. cxd5 {[%emt 0:00:05] A07: Réti Opening: New York and Capablanca Systems.} cxd5 {[%emt 0:00:01]} 7. d4 {[%emt 0:00:07]} e6 {[%emt 0:00:04]} 8. O-O {[%emt 0:00:01] The position is equal.} Ngf6 {[%emt 0:00:02]} 9. Nc3 {[%emt 0:00:01]} Be7 {[%emt 0:00:01]} 10. Qb3 {[%emt 0:00:18]} Qb6 {[%emt 0:00:02] [#]} (10... Bxf3 $5 11. Bxf3 Nb6 $14) 11. Bf4 $146 {[%emt 0:00:16]} ({Predecessor:} 11. Qxb6 Nxb6 12. Ne5 Bb4 13. g4 Bxc3 14. bxc3 Bg6 15. c4 Nxc4 16. Nxc4 dxc4 17. Bxb7 {½-½ (31) Ganguly,S (2630)-Sindarov,J (2571) Sharjah 2021}) 11... O-O {[%emt 0:00:03]} 12. Rfc1 {[%emt 0:00:22]} Rfc8 {[%emt 0:00:05]} 13. Ne5 {[%emt 0:01:52]} Nxe5 {[%emt 0:00:16]} (13... Qxd4 14. Nxd7 Nxd7 15. Qxb7 $16) 14. dxe5 {[%emt 0:00:05]} Nd7 {[%emt 0:00:19]} 15. e4 {[%emt 0:00:38]} (15. Qxb6 $11 {remains equal.} axb6 16. g4) 15... d4 $17 {[%emt 0:00:49] White must now prevent ...Qxb3.} 16. Qxb6 {[%emt 0:00:26]} axb6 {[%emt 0:00:30]} (16... Nxb6 $17 17. Nb5 g5) 17. Nb5 $15 {[%emt 0:00:03][%cal Bc3b5,Bb5d4,Bd4f5,Bf5d6][%mdl 32]} g5 {[%emt 0:00:02]} 18. Bd2 {[%emt 0:00:16]} d3 $36 {[%emt 0:01:08][%mdl 2048] Black has the initiative.} 19. Bc3 {[%emt 0:03:42]} (19. Rxc8+ $11 Rxc8 20. Bc3) 19... Be2 {[%emt 0:00:29][%cal Od3d2] aiming for ...d2! Black is much more active.} (19... Rc5 $5 {[%cal Rc5b5]} 20. Nd4 Rd8 $15) 20. Nd4 {[%emt 0:00:59]} Bh5 {[%emt 0:00:51][%cal Be2h5,Bh5g6,Bg6h7][%mdl 32]} 21. g4 {[%emt 0:00:14]} Bg6 {[%emt 0:00:03]} 22. Nf5 {[%emt 0:00:01]} Bf8 {[%emt 0:00:39]} (22... exf5 23. exf5 Rc7 24. fxg6 $11) 23. Nd6 {[%emt 0:00:10]} Rc7 {[%emt 0:02:21]} 24. h4 {[%emt 0:02:42]} (24. Rd1 $142) 24... h6 {[%emt 0:00:34]} (24... h5 $17 25. Bf1 (25. hxg5 hxg4 26. Kf1 Be7 $17) (25. gxh5 Bxh5 26. hxg5 Nxe5 $17) 25... d2 26. Bxd2 Rxc1 27. Bxc1 (27. Rxc1 $2 Nxe5 28. Bb4 Nf3+ 29. Kh1 hxg4 $19) 27... hxg4 28. Bxg5 Nxe5) 25. h5 {[%emt 0:00:39] [#]} Bh7 {[%emt 0:00:03]} 26. a3 {[%emt 0:00:22] [#]} (26. Rd1 $17 {keeps fighting.}) 26... Bg7 $1 $19 {[%emt 0:00:13]} 27. Bf1 {[%emt 0:00:20]} (27. Bd4 {was worth a try.} Rxc1+ 28. Rxc1) 27... Nxe5 {[%emt 0:00:56] Black has a decisive advantage.} ({Inferior is} 27... Bxe5 28. Nb5 Rxc3 29. Nxc3 $17) 28. Rd1 {[%emt 0:00:20]} Rd8 {[%emt 0:00:21]} ({And not} 28... Nxg4 29. Bxg7 Kxg7 30. Bxd3 $17) 29. Nb5 {[%emt 0:00:36]} Rc5 $2 {[%emt 0:00:03] Weighted Error Value: White=0.29 (precise) /Black=0.13 (very precise)} (29... Rcd7 $19 30. Bxe5 Bxe5) 0-1

[Event "MPL-4 Indian Chess Tour 2022"]
[Site "Chess24"]
[Date "2022.09.27"]
[Round "8.8"]
[White "Aditya Mittal"]
[Black "Sethuraman, S.P."]
[Result "0-1"]
[ECO "D43"]
[WhiteElo "2485"]
[BlackElo "2638"]
[Annotator "TA"]
[PlyCount "76"]
[EventDate "2022.09.29"]
[EventType "tourn (rapid)"]
[EventCountry "NET"]
[SourceTitle "playchess.com"]
[Source "ChessBase"]
[SourceQuality "1"]
[WhiteTeam "India"]
[BlackTeam "India"]
[WhiteTeamCountry "IND"]
[BlackTeamCountry "IND"]
[TimeControl "900+10"]

{[%evp 20,76,9,9,13,-7,-12,-5,48,56,41,41,44,21,360,355,356,354,355,350,352,368,455,441,449,433,570,562,575,332,596,572,518,328,391,404,406,408,403,166,602,-1312,-1265,-1800,-1740,-2790,-1227,-29983,-29984,-29984,-29985,-29985,-29986,-29986,-29987,-29987,-29988,-29989,-29990]} 1. d4 {[%emt 0:00:00]} d5 {[%emt 0:00:00]} 2. c4 {[%emt 0:00:02]} c6 {[%emt 0:00:01]} 3. Nf3 {[%emt 0:00:01]} Nf6 {[%emt 0:00:00]} 4. Nc3 {[%emt 0:00:01]} e6 {[%emt 0:00:01]} 5. Bg5 {[%emt 0:00:01][%cal Bc1g5,Bg5h4,Bh4g3,Bg3e5][%mdl 32]} h6 {[%emt 0:00:01]} 6. Bh4 {[%emt 0:00:02]} dxc4 {[%emt 0:00:00]} 7. e4 {[%emt 0:00:00]} g5 {[%emt 0:00:01]} 8. Bg3 {[%emt 0:00:01]} b5 {[%emt 0:00:01]} 9. Be2 {[%emt 0:00:01]} Bb7 {[%emt 0:00:01]} 10. h4 {[%emt 0:00:01]} g4 {[%emt 0:00:02]} 11. Ne5 {[%emt 0:00:01]} Nbd7 {[%emt 0:00:01] D43: Semi-Slav: 5 Bg5 h6.} 12. Nxd7 {[%emt 0:00:01]} Qxd7 {[%emt 0:00:05]} 13. Be5 {[%emt 0:00:01]} Be7 {[%emt 0:00:08]} (13... Qe7 $11) 14. Qc1 {[%emt 0:01:31]} c5 {[%emt 0:08:32]} 15. Qf4 {[%emt 0:01:09][%csl LRf6,LRg4]} cxd4 {[%emt 0:00:12]} 16. Bxf6 {[%emt 0:00:38] [#]} O-O-O $146 {[%emt 0:01:10][%mdl 8192]} (16... Rg8 $11 {and Black has nothing to worry.}) ({Predecessor:} 16... Rg8 17. Rd1 Bxf6 18. Qxf6 Rd8 19. Qe5 d3 20. a3 a5 21. Nxb5 Bxe4 22. Qxe4 Qxb5 23. Bxg4 d2+ {½-½ (23) Skowronek,J (2014)-Dimitrova,M ICCF email 2015}) 17. Bxh8 $18 {[%emt 0:03:43]} Rxh8 {[%emt 0:00:32]} 18. Rd1 {[%emt 0:01:21]} (18. Qxg4 dxc3 19. bxc3 Bf6 $14) (18. Qe5 f6 19. Qxb5 dxc3 20. Qxc4+ Kb8 21. Qxc3 Rc8 22. Qg3+ Qd6 23. Qxd6+ (23. Qxg4 f5 $16) (23. Bxg4 Qxg3 24. fxg3 Rc2 $16) 23... Bxd6 24. Bxg4 Bxe4 $18) 18... Rd8 {[%emt 0:01:04]} 19. O-O {[%emt 0:01:52]} ({Not} 19. Qxg4 b4 20. Nb1 (20. Bxc4 bxc3 21. bxc3 Qc7 $16) 20... d3 $18) (19. Qxf7 Bb4 20. Qg6 (20. Qxd7+ Rxd7 21. Bxg4 dxc3 $16) 20... dxc3 $18) (19. Qxh6 Qc6 $16) 19... d3 {[%emt 0:00:20]} 20. Bxg4 {[%emt 0:00:40]} Rg8 {[%emt 0:01:31]} 21. Bh3 {[%emt 0:01:09]} Bd6 {[%emt 0:00:40]} 22. Qxh6 {[%emt 0:00:23]} Be5 {[%emt 0:00:36]} 23. Qh5 {[%emt 0:00:31]} f6 {[%emt 0:01:06]} 24. Qf3 {[%emt 0:00:39]} b4 $2 {[%emt 0:00:06] [#]} (24... Kb8 25. a3 a6) 25. Nd5 $1 {[%emt 0:00:25]} f5 {[%emt 0:00:01]} 26. Qe3 {[%emt 0:01:18]} Kb8 {[%emt 0:00:03]} 27. Nxb4 {[%emt 0:00:20]} fxe4 {[%emt 0:02:13]} 28. Qc5 {[%emt 0:01:10][%csl LRc4,LRe5]} Bc7 {[%emt 0:00:35]} 29. Rc1 {[%emt 0:01:36]} (29. g3 $142) 29... e3 $2 {[%emt 0:00:27]} (29... Rc8 30. Qg5 (30. Qxc4 Qd6 $16) (30. Rxc4 $2 Bh2+ 31. Kh1 Rxc5 $19) 30... Qd6) 30. Qxe3 $4 {[%emt 0:01:13][%mdl 8192]} (30. fxe3 $18 a5 31. Rxc4 axb4 32. Rd4) 30... Qd6 $19 {[%emt 0:00:02][%csl Gc7][%cal Rd6h2] [#]} 31. g3 {[%emt 0:00:03]} Bb6 {[%emt 0:00:10] ( -> ...Rxg3+). This bishop pair is nice.} 32. Na6+ {[%emt 0:00:18]} Bxa6 {[%emt 0:00:12]} (32... Ka8 $142 33. Bg2 Bxe3 34. Bxb7+ Kxb7) 33. Qe4 {[%emt 0:00:15]} Bb7 {[%emt 0:00:13] Black mates.} 34. Qxb7+ {[%emt 0:00:11]} Kxb7 {[%emt 0:00:02]} 35. Bg2+ {[%emt 0:00:01]} Kb8 {[%emt 0:00:01]} 36. Kh1 {[%emt 0:00:07]} d2 {[%emt 0:00:03]} 37. Rcd1 {[%emt 0:00:05]} Qd3 {[%emt 0:00:05]} 38. Kh2 {[%emt 0:00:32]} Qe2 {[%emt 0:00:09] Black used his chance.  Weighted Error Value: White=0.93/Black=0.72} 0-1

[Event "MPL-4 Indian Chess Tour 2022"]
[Site "Chess24"]
[Date "2022.09.27"]
[Round "9.1"]
[White "Sethuraman, S.P."]
[Black "Raja Harshit"]
[Result "0-1"]
[ECO "B51"]
[WhiteElo "2638"]
[BlackElo "2459"]
[Annotator "TA"]
[PlyCount "82"]
[EventDate "2022.09.29"]
[EventType "tourn (rapid)"]
[EventCountry "NET"]
[SourceTitle "playchess.com"]
[Source "ChessBase"]
[SourceQuality "1"]
[WhiteTeam "India"]
[BlackTeam "India"]
[WhiteTeamCountry "IND"]
[BlackTeamCountry "IND"]
[TimeControl "900+10"]

{[%evp 9,82,5,8,0,0,0,0,0,0,0,14,3,3,-7,54,32,38,37,70,66,56,36,51,20,41,45,66,0,0,-19,0,-15,75,60,130,134,124,111,105,6,24,14,29,-71,-8,-66,-41,-562,-581,-583,-559,-1083,-1051,-1853,-791,-730,-645,-825,-761,-1194,-1203,-1269,-1261,-2225,-2083,-1893,-1844,-29978,-29978,-29990,-29991,-29991,-29992,-29992,-445]} 1. e4 {[%emt 0:00:00]} c5 {[%emt 0:00:00]} 2. Nf3 {[%emt 0:00:02]} d6 {[%emt 0:00:01]} 3. Bb5+ {[%emt 0:00:00]} Nd7 {[%emt 0:00:02]} 4. d4 {[%emt 0:00:02]} cxd4 {[%emt 0:00:01]} 5. Qxd4 {[%emt 0:00:00]} a6 {[%emt 0:00:01]} 6. Be2 {[%emt 0:00:02] B51: Sicilian: Moscow Variation (3 Bb5+) without 3...Bd7.} Ngf6 {[%emt 0:00:11]} 7. O-O {[%emt 0:00:06]} e5 {[%emt 0:00:19]} 8. Qe3 {[%emt 0:00:02] The position is equal.} Nc5 {[%emt 0:00:06]} 9. Nfd2 {[%emt 0:00:01]} Be7 {[%emt 0:00:11]} 10. c4 {[%emt 0:00:01]} O-O {[%emt 0:00:16]} 11. Nc3 {[%emt 0:00:01] [#]} a5 $146 {[%emt 0:00:54]} (11... Bd7 $11) ({Predecessor:} 11... b5 12. cxb5 axb5 13. Bxb5 Bb7 14. Bc4 Ne6 15. b3 Nd4 16. Qd3 Ne6 17. Rd1 Qc8 {½-½ (31) Adams,M (2700)-Vitiugov,N (2731) London 2021}) 12. b3 {[%emt 0:00:18]} Be6 {[%emt 0:00:05]} 13. h3 {[%emt 0:00:20]} h6 {[%emt 0:00:37]} 14. Rd1 {[%emt 0:00:07]} Nfd7 {[%emt 0:00:07]} 15. Bf1 {[%emt 0:00:55]} Qb6 {[%emt 0:00:23]} 16. Rb1 {[%emt 0:00:48]} Bg5 {[%emt 0:00:47]} 17. Qe1 {[%emt 0:00:04]} f5 {[%emt 0:00:11]} 18. exf5 {[%emt 0:07:50]} (18. Ba3 $14) 18... Bxf5 $11 {[%emt 0:00:00]} 19. Nd5 {[%emt 0:00:01]} Qa7 {[%emt 0:00:31]} 20. Nf3 {[%emt 0:01:40]} Bxc1 {[%emt 0:01:32]} (20... Bxb1 $11 21. Bxg5 Bc2) 21. Rbxc1 $16 {[%emt 0:00:22] aiming for Ne7+.} Rae8 {[%emt 0:00:45] Against Ne7+} (21... Bxh3 $14 22. Be2 Be6) 22. Nc7 $1 {[%emt 0:00:24][%csl LRd6,LRe8]} Re7 {[%emt 0:01:12]} 23. Nb5 {[%emt 0:00:04]} Qb8 {[%emt 0:00:19]} 24. Nxd6 {[%emt 0:01:29]} (24. Rxd6 $16 Bxh3 25. a3 (25. Qxa5 Ne4 $16)) 24... Bxh3 $1 $11 {[%emt 0:00:03]} 25. Nh4 {[%emt 0:00:18] Black must now prevent Ng6.} Re6 {[%emt 0:00:50] Against Ng6} 26. Nb5 {[%emt 0:01:38]} (26. Ne4 $11 Bg4 27. f3) 26... Qd8 {[%emt 0:00:56]} (26... Bg4 $1 $17 {[%cal Rg4d1]} 27. f3 Bh5 28. Qxa5 g5) 27. f3 {[%emt 0:01:06]} (27. Rc3 $1 $11 Bg4 28. f3) 27... Rf4 $15 {[%emt 0:00:22]} 28. g3 {[%emt 0:00:44][%mdl 8192] [#] This costs White the game.} (28. gxh3 $15 Rxh4 29. Rc2) 28... Rxh4 $1 $19 {[%emt 0:00:07][%mdl 512]} 29. gxh4 {[%emt 0:00:02]} Rg6+ {[%emt 0:00:06]} 30. Kh2 {[%emt 0:00:49]} Bxf1 {[%emt 0:00:02]} 31. Rc3 {[%emt 0:00:47] [#]} Rg2+ {[%emt 0:02:01]} (31... Qf8 $142 $1 32. Rd2 {[#]} Qf5 $1 33. Qxf1 Qf4+ 34. Kh1 Qxd2) 32. Kh1 {[%emt 0:00:02]} Rxa2 {[%emt 0:00:03]} 33. Qg3 {[%emt 0:00:06]} Be2 {[%emt 0:00:19]} 34. Rg1 {[%emt 0:00:01]} Qf6 {[%emt 0:00:19]} 35. Re3 {[%emt 0:00:01]} e4 {[%emt 0:00:22][%cal Re2f3,Be5e4,Be4f3,Bf3f2][%mdl 32]} 36. Nc3 {[%emt 0:00:04]} Bxf3+ {[%emt 0:00:11]} 37. Rxf3 {[%emt 0:00:02]} exf3 {[%emt 0:00:05]} 38. Nxa2 {[%emt 0:00:01]} Ne4 {[%emt 0:00:03] Black mates.} 39. Qh2 {[%emt 0:00:15]} f2 {[%emt 0:00:03]} 40. Rf1 {[%emt 0:00:02]} Qf3+ {[%emt 0:00:06]} 41. Qg2 {[%emt 0:00:06]} Ng3+ {[%emt 0:00:00] Weighted Error Value: White=1.04/Black=0.40} 0-1